Cogmind - Beta 11.1 @@@ ROGUE MODE // 2022.09.27 @ 04:17:30 Player: DuckBoy Result: Destroyed by P-80 Master with Gamma Rifle Performance ------------- Evolutions (9) 4500 Regions Visited (21) 4200 Robots Destroyed (192) 960 Value Destroyed (7399) 7399 Prototype IDs (37) 740 Alien Tech Used (0) 0 Bonus (5547) 5547 TOTAL SCORE: 23346 Bonus ------- High Alert Combat Kills 270 Follower Combat Kills 2736 Entered DSFs 1500 Aligned with FarCom 300 Built Enhanced Grunts 300 A7 Reached Mainframe 300 Met R17 at Cetus 500 Friendly Fire -359 Cogmind --------- Core Integrity 0/1600 Matter 276/300 Energy 100/100 System Corruption 69% Temperature Cool (0) Movement Core (50) Location -1/Access Parts ------- > --- POWER (3) -------- (None) > --- PROPULSION (6) --- (None) > --- UTILITY (12) ----- Graphene Brace > --- WEAPON (4) ------- (None) > --- INVENTORY (5) ---- Micro Antimatter Reactor Quantum Reactor Authchip [R/Combat] Heavy Disruptor Cannon Peak State ------------ > --- POWER ------------ Micro Antimatter Reactor Micro Antimatter Reactor Micro Antimatter Reactor > --- PROPULSION ------- Flexi-carbon Leg Myomer Leg Myomer Leg Biometal Leg Experimental Myomer Leg > --- UTILITY ---------- Improved Cooling System Large Storage Unit Centrium Medium Armor Plating Centrium Medium Armor Plating Centrium Medium Armor Plating Graphene Brace Hacking Suite Advanced Hacking Suite System Shield Authchip [Weapon] Improved Dynamic Insulation System > --- WEAPON ----------- Enhanced Quantum Rifle Compact Linear Accelerator Power Sword Phasing Sabre > --- INVENTORY -------- Micro Antimatter Reactor Micro Antimatter Reactor Micro Antimatter Reactor Micro Antimatter Reactor Improved Heavy Armor Plating Authchip [R/Combat] Authchip [R/Combat] Improved System Restoration Module Improved Arc Projector Heavy Disruptor Cannon Advanced KE Penetrator Improved Remote Datajack [Rating: 159] Favorites ----------- Power Heavy Ion Engine Engine Heavy Ion Engine Power Core Fission Core Reactor Micro Antimatter Reactor Propulsion Armored Treads Treads Armored Treads Leg Flexi-carbon Leg Wheel Armored Huge Wheel Hover Unit Combat Airjet Utility Hacking Suite Device Improved Heat Sink Storage High-capacity Storage Unit Processor Advanced Visual Processing Unit Hackware Hacking Suite Protection Centrium Medium Armor Plating Weapon EM Pulse Cannon Energy Gun Enhanced Quantum Rifle Energy Cannon EM Pulse Cannon Ballistic Gun Assault Rifle Ballistic Cannon Hypervelocity Mass Driver Launcher EMP Blaster Special Weapon Remote Datajack Slashing Weapon Power Sword Special Melee Weapon Improved Datajack Build | -11 -10 -10 -9 -9 -9 -8 -8 -7 -7 -6 -5 -5 -4 -4 -4 -4 -4 -3 -2 -2 -1 ------- Run | Scr Mat Min Mat Min Exi Min Mat Fac DSF Fac Fac DSF Fac Was Fac Ext Cet Res Res DSF Acc Slots Evolved 18 | . . . 2 . . . 2 2 . 2 2 . 2 . . . . 2 2 . 2 Power 2 | . . . . . . . . . . . 1 . . . . . . . 1 . . Propulsion 4 | . . . . . . . . 2 . . . . 1 . . . . 1 . . . Utility 10 | . . . 2 . . . 2 . . 2 1 . 1 . . . . . . . 2 Weapon 2 | . . . . . . . . . . . . . . . . . . 1 1 . . Parts Attached 245 | 6 1 10 9 . 3 . 24 1 7 28 . 17 35 2 3 49 9 8 4 6 23 Power 29 | 1 . 1 1 . . . 2 . . 2 . 1 6 . . 6 . 2 . 3 4 Engine 8 | 1 . 1 1 . . . 2 . . . . 1 1 . . 1 . . . . . Core 7 | . . . . . . . . . . 2 . . 2 . . 3 . . . . . Reactor 14 | . . . . . . . . . . . . . 3 . . 2 . 2 . 3 4 Propulsion 68 | 2 . 2 3 . . . 6 1 3 4 . 8 7 . 1 14 1 5 . . 11 Treads 14 | . . 1 3 . . . 5 1 2 2 . . . . . . . . . . . Leg 22 | . . 1 . . . . . . . . . . . . . 12 1 5 . . 3 Wheel 5 | 2 . . . . . . . . . 1 . 2 . . . . . . . . . Hover 27 | . . . . . . . 1 . 1 1 . 6 7 . 1 2 . . . . 8 Flight . | . . . . . . . . . . . . . . . . . . . . . . Utility 83 | 1 . 2 3 . 2 . 7 . 1 20 . 6 16 1 1 10 4 . 3 2 4 Device 25 | . . 1 2 . . . 1 . . 2 . . 11 1 . 1 . . 2 1 3 Storage 4 | 1 . 1 . . 1 . . . . . . 1 . . . . . . . . . Processor 1 | . . . . . . . 1 . . . . . . . . . . . . . . Hackware 24 | . . . . . 1 . 1 . . 14 . 2 3 . . 2 . . . 1 . Protection 29 | . . . 1 . . . 4 . 1 4 . 3 2 . 1 7 4 . 1 . 1 Artifact . | . . . . . . . . . . . . . . . . . . . . . . Weapon 65 | 2 1 5 2 . 1 . 9 . 3 2 . 2 6 1 1 19 4 1 1 1 4 Energy Gun 7 | . . . . . . . 2 . . . . . 1 . . 2 . . . . 2 Energy Cannon 9 | . . . 2 . . . 5 . 2 . . . . . . . . . . . . Ballistic Gun 5 | 2 1 1 . . . . . . . . . . . . . . 1 . . . . Ballistic Cannon 18 | . . 1 . . . . 1 . 1 1 . . 2 . . 8 3 . 1 . . Launcher 5 | . . 3 . . 1 . . . . . . . . . . 1 . . . . . Special Weapon 8 | . . . . . . . . . . . . . 1 1 . 5 . . . . 1 Impact Weapon . | . . . . . . . . . . . . . . . . . . . . . . Slashing Weapon 11 | . . . . . . . . . . 1 . 1 2 . 1 3 . 1 . 1 1 Piercing Weapon . | . . . . . . . . . . . . . . . . . . . . . . Special Melee Weapon 2 | . . . . . . . 1 . . . . 1 . . . . . . . . . Unidentified Prototypes 10 | . . . 1 . . . 2 . . . . . 2 . . . 2 1 2 . . Corrupted Parts 7 | . . . . . . . 4 . 2 1 . . . . . . . . . . . System Corruption 29 | . . . . . . . 17 . 8 4 . . . . . . . . . . . Parts Lost 88 | . . 2 3 . . . 4 . 2 2 . 5 8 . . 20 1 4 . 4 33 Power 10 | . . . . . . . . . . . . 1 1 . . 3 . . . . 5 Propulsion 32 | . . 1 1 . . . 1 . 1 . . 1 3 . . 5 . 3 . 2 14 Utility 34 | . . . 1 . . . 2 . 1 2 . 2 3 . . 10 1 . . 1 11 Weapon 12 | . . 1 1 . . . 1 . . . . 1 1 . . 2 . 1 . 1 3 Highest Loss Streak 13 | . . 1 1 . . . 1 . 1 1 . 5 4 . . 6 1 3 . 4 13 To Critical Strikes 1 | . . . . . . . . . . . . . . . . 1 . . . . . Average Slot Usage (%) 87 | . 85 91 86 100 100 100 91 82 92 81 76 77 92 99 100 90 94 98 89 93 67 Engine 4 | . 14 14 10 11 11 11 8 7 7 . . 2 3 . . 1 . . . . . Core 2 | . . . . . . . . . . 5 5 2 1 5 5 5 . . . . . Reactor 1 | . . . . . . . . . . . . . 2 5 5 1 10 9 8 9 7 Treads 10 | . . . 16 22 22 22 17 21 24 16 11 . . . . . . . . . . Leg 4 | . . 9 . . . . . . . . . . . . . 8 26 27 26 24 13 Wheel 1 | . 28 16 . . . . . . . 4 5 5 . . . . . . . . . Hover 5 | . . . . . . . . . 4 . . 9 25 26 26 14 . . . . 3 Device 11 | . . 8 24 22 15 11 8 7 7 13 11 7 7 20 19 9 5 4 4 7 9 Storage 6 | . 14 14 11 11 11 11 9 7 7 6 5 5 5 5 5 5 5 4 4 4 3 Processor 1 | . . . . . . . 6 . . . . . . . . . . . . . . Hackware 12 | . . . . . 6 11 9 15 15 10 17 19 30 26 26 19 21 19 17 16 9 Protection 11 | . . . 8 11 11 11 12 15 15 15 11 13 5 . 1 11 15 19 16 14 8 Energy Cannon 3 | . . . 5 22 15 11 14 . 2 . . . . . . . . . . . . Ballistic Cannon 4 | . . . 8 . . . . 7 5 4 5 1 1 . . 6 9 8 6 6 3 Slashing Weapon 1 | . . . . . . . . . . 1 . 3 4 5 5 1 . 3 4 8 6 Naked Turns . | . . . . . . . . . . . . . . . . . . . . . . Heaviest Build 101 | 11 11 28 43 43 69 69 78 78 79 88 77 89 80 55 58 94 99 101 87 92 92 Greatest Support 138 | 20 20 20 45 45 45 45 45 60 80 80 28 56 58 58 59 105 105 138 138 138 123 Greatest Overweight (x) 3 | . . 2 3 . 1 1 3 1 1 3 2 2 1 . . 3 . . . . 2 Average Overweight (x) . | . . 1 1 . . 1 1 1 . 1 2 . . . . . . . . . . Largest Inventory Capacity 20 | 8 8 10 10 10 20 20 20 20 20 20 20 20 15 15 15 15 15 15 15 15 15 Average Capacity 16 | 6 8 9 10 10 11 20 20 20 20 20 20 18 15 15 15 15 15 15 15 15 14 Most Carried 20 | . 6 10 10 10 10 10 20 20 20 20 20 20 15 14 15 15 15 15 15 15 15 Average Carried 14 | . 3 6 9 10 9 10 17 19 19 18 20 17 13 13 14 13 15 14 14 13 12 Final Capacity 20 | 8 8 10 10 10 20 20 20 20 20 20 20 15 15 15 15 15 15 15 15 15 5 Final Carried 20 | . 6 10 10 10 10 10 20 19 20 20 20 13 12 14 15 15 15 15 14 15 5 Class Distribution -------------------- 32% | Scavenger-Mutant 31% | Mutant 18% | Hacker-Mutant 11% | Commander-Mutant 5% | Wizard-Mutant Dominant Class ---------------- Mutant | -10/Materials Mutant | -10/Mines Mutant | -9/Materials Mutant | -9/Mines Mutant | -9/Exiles Mutant | -8/Mines Mutant | -8/Materials Scavenger-Mutant | -7/Factory Scavenger-Mutant | -7/DSF Scavenger-Mutant | -6/Factory Commander-Mutant | -5/Factory Hacker-Mutant | -5/DSF Wizard-Mutant | -4/Factory Hacker-Mutant | -4/Waste Hacker-Mutant | -4/Factory Hacker-Mutant | -4/Extension Scavenger-Mutant | -4/Cetus Scavenger-Mutant | -3/Research Scavenger-Mutant | -2/Research Scavenger-Mutant | -2/DSF Scavenger-Mutant | -1/Access Resources | -11 -10 -10 -9 -9 -9 -8 -8 -7 -7 -6 -5 -5 -4 -4 -4 -4 -4 -3 -2 -2 -1 ----------- Run | Scr Mat Min Mat Min Exi Min Mat Fac DSF Fac Fac DSF Fac Was Fac Ext Cet Res Res DSF Acc Matter Collected 6162 | 260 . 166 669 . . . 299 . 205 874 . 352 349 188 30 2126 155 262 . 102 125 Remotely . | . . . . . . . . . . . . . . . . . . . . . . Salvage Created 8040 | . . 186 796 . . . 1560 . 372 734 . 295 653 . 172 2272 63 349 . 89 499 Parts 429 | . . 2 61 . . . 102 . 23 39 . 15 37 . 5 78 6 12 . 2 47 Haulers Intercepted 16 | . . . 3 . . . 5 . . 1 . . 1 . . 6 . . . . . Recyclers Shooed 4 | . . . . . . . . . . . . . . . . 3 . . . . 1 Parts Field Recycled . | . . . . . . . . . . . . . . . . . . . . . . Retrieved Matter . | . . . . . . . . . . . . . . . . . . . . . . Parts Self-Destructed . | . . . . . . . . . . . . . . . . . . . . . . Prevented . | . . . . . . . . . . . . . . . . . . . . . . Kills | -11 -10 -10 -9 -9 -9 -8 -8 -7 -7 -6 -5 -5 -4 -4 -4 -4 -4 -3 -2 -2 -1 ------- Run | Scr Mat Min Mat Min Exi Min Mat Fac DSF Fac Fac DSF Fac Was Fac Ext Cet Res Res DSF Acc Combat Hostiles Destroyed 133 | . . 8 24 . . . 23 . 12 12 . 6 5 . 2 26 1 6 . 1 7 Melee 22 | . . . . . . . . . . . . 3 3 . 2 1 . 5 . 1 7 Guns 4 | . . 4 . . . . . . . . . . . . . . . . . . . Cannons 91 | . . . 24 . . . 17 . 12 11 . 3 2 . . 20 1 1 . . . AOE 16 | . . 4 . . . . 6 . . 1 . . . . . 5 . . . . . Classes Destroyed 19 | . . 2 7 . . . 3 . 1 2 . . . . . 4 . . . . . Worker 6 | . . . . . . . 1 . . . . . 2 . 1 2 . . . . . Builder 15 | . . . 2 . . . 4 . . 1 . . 1 . . 6 . . . . 1 Tunneler 1 | . . . . . . . . . . . . . . . . 1 . . . . . Hauler 16 | . . . 3 . . . 5 . . 1 . . 1 . . 6 . . . . . Recycler 5 | . . . . . . . . . . 1 . . 1 . . 3 . . . . . Operator 6 | . . . 3 . . . 1 . . 1 . . . . . 1 . . . . . Watcher 13 | . . . 2 . . . 5 . . 3 . . 2 . . 1 . . . . . Swarmer 27 | . . . 6 . . . 8 . 3 . . . . . . 8 . 2 . . . Grunt 39 | . . 2 11 . . . 5 . 6 7 . . . . 1 7 . . . . . Brawler 2 | . . . 1 . . . . . 1 . . . . . . . . . . . . Sentry 22 | . . . 6 . . . 6 . . . . . . . 1 7 . 2 . . . Specialist 4 | . . . . . . . . . 1 . . 1 . . . . . . . 1 1 Hunter 11 | . . . . . . . 3 . . 2 . 2 2 . . 2 . . . . . Programmer 17 | . . . . . . . . . . 3 . 2 3 . . 1 . 2 . . 6 Heavy 3 | . . . . . . . 1 . 1 . . 1 . . . . . . . . . Behemoth 1 | . . . . . . . . . . . . . . . . 1 . . . . . Cetus Guard 1 | . . . . . . . . . . . . . . . . . 1 . . . . Assembled 6 | . . 6 . . . . . . . . . . . . . . . . . . . Surgeon 2 | . . . . . . . . . . . . . . . . 2 . . . . . Butcher 1 | . . . . . . . . . . . . . . . . 1 . . . . . Best Kill Streak 11 | . . 7 3 . . . 11 . 3 3 . 2 2 . 1 6 1 2 . 1 2 Combat Bots Only 7 | . . 7 3 . . . 5 . 3 3 . 2 1 . 1 5 1 2 . 1 2 Max Kills in Single Turn 3 | . . 1 1 . . . 3 . 1 2 . 1 1 . 1 2 1 1 . 1 1 Gunslinging . | . . . . . . . . . . . . . . . . . . . . . . Exploded 2 | . . 1 . . . . 2 . . 1 . . . . . 1 . . . . . Melee 1 | . . . . . . . . . . . . 1 1 . 1 1 . 1 . 1 1 Uniques/NPCs Destroyed 1 | . . . . . . . . . . . . . . . . . 1 . . . . Revision 17 (-4/Cetus) Combat | -11 -10 -10 -9 -9 -9 -8 -8 -7 -7 -6 -5 -5 -4 -4 -4 -4 -4 -3 -2 -2 -1 -------- Run | Scr Mat Min Mat Min Exi Min Mat Fac DSF Fac Fac DSF Fac Was Fac Ext Cet Res Res DSF Acc Damage Taken 19955 | . . 483 833 . . . 886 . 1300 643 . 1936 1224 . 516 3090 211 1373 . 1756 5704 Core 3145 | . . 90 122 . . . 202 . 76 23 . 231 137 . 128 317 15 118 . 86 1600 Absorbed by Shields 165 | . . . . . . . . . . . . . . . . 75 90 . . . . Regen/Repaired (Parts) 907 | . . . . . . . 58 . . 114 . . 314 . . 421 . . . . . Core Remaining (%) 79 | 100 . 64 . . . 69 63 . 89 97 . 76 . . . . 48 90 . 94 . Volleys Fired 472 | . . 19 94 . . . 65 . 47 49 . 26 16 1 . 135 3 13 . . 4 Largest 2 | . . 2 2 . . . 2 . 2 1 . 1 2 1 . 2 2 2 . . 1 Hottest 132 | . . 66 126 . . . 126 . 126 60 . 60 132 5 . 132 132 132 . . 65 Shots Fired 636 | . . 25 102 . . . 107 . 52 49 . 26 27 1 . 210 7 26 . . 4 Gun 45 | . . 14 . . . . 3 . . . . . 3 . . 22 . . . . 3 Cannon 537 | . . . 102 . . . 93 . 52 49 . 26 22 . . 160 7 26 . . . Launcher 39 | . . 11 . . . . 11 . . . . . . . . 17 . . . . . Special 15 | . . . . . . . . . . . . . 2 1 . 11 . . . . 1 Kinetic 432 | . . 14 86 . . . . . 42 49 . 26 22 . . 160 7 26 . . . Thermal . | . . . . . . . . . . . . . . . . . . . . . . Explosive 17 | . . . . . . . . . . . . . . . . 17 . . . . . Electromagnetic 172 | . . 11 16 . . . 107 . 10 . . . 3 . . 22 . . . . 3 Robot Hit Streak 15 | . . 2 8 . . . 15 . 12 8 . 5 3 3 . 14 2 3 . . 4 Robot Miss Streak 10 | . . 2 4 . . . 4 . 3 4 . 3 8 . . 10 2 3 . . . Penetration Max 2 | . . . 1 . . . . . . . . . . . . 2 . 1 . . . Secondary Targets . | . . . . . . . . . . . . . . . . . . . . . . Shots Hit Robots 511 | . . 10 66 . . . 66 . 36 35 . 30 39 1 14 130 3 29 . 10 42 Core Hits 267 | . . 16 35 . . . 50 . 14 22 . 9 12 . 5 79 1 9 . 2 13 Critical Kills 29 | . . . . . . . . . . . . . 2 . . 25 1 1 . . . Critical Parts Destroyed 46 | . . . . . . . . . . . . . 1 . . 36 1 8 . . . Critical Strikes 116 | . . . 8 . . . 1 . 4 7 . 5 5 . 2 69 3 10 . . 2 Destroy 81 | . . . . . . . . . . . . . 3 . . 66 3 9 . . . Blast 23 | . . . 8 . . . . . 4 7 . 4 . . . . . . . . . Corrupt 1 | . . . . . . . 1 . . . . . . . . . . . . . . Sever 11 | . . . . . . . . . . . . 1 2 . 2 3 . 1 . . 2 Melee Attacks 307 | . . . . . . . . . . 27 . 17 67 . 29 13 . 44 . 15 95 Impact . | . . . . . . . . . . . . . . . . . . . . . . Slashing 300 | . . . . . . . . . . 27 . 17 60 . 29 13 . 44 . 15 95 Piercing . | . . . . . . . . . . . . . . . . . . . . . . Sneak Attacks 23 | . . . . . . . . . . 1 . . 15 . 1 3 . . . 1 2 Combat Hostiles 2 | . . . . . . . . . . . . . 1 . . . . . . 1 . Follow-up Attacks 6 | . . . . . . . . . . . . . . . . 1 . . . 1 4 Damage Inflicted 21583 | . . 428 3444 . . . 2260 . 1662 2200 . 1424 1305 . 589 4987 77 964 . 478 1765 Guns 430 | . . 97 . . . . 32 . . . . . . . . 257 . . . . 44 Cannons 11850 | . . . 3373 . . . 1712 . 1662 1892 . 872 67 . . 1942 77 253 . . . Explosions 3359 | . . 331 70 . . . 516 . . 234 . . . . . 2208 . . . . . Melee 5915 | . . . . . . . . . . 74 . 552 1238 . 589 580 . 711 . 450 1721 Ramming 29 | . . . 1 . . . . . . . . . . . . . . . . 28 . Kinetic 9653 | . . 97 2969 . . . . . 1484 1892 . 872 67 . . 1942 77 253 . . . Thermal 449 | . . 36 . . . . 106 . . 234 . . . . . 73 . . . . . Explosive 2135 | . . . . . . . . . . . . . . . . 2135 . . . . . Electromagnetic 3402 | . . 295 474 . . . 2154 . 178 . . . . . . 257 . . . . 44 Impact . | . . . . . . . . . . . . . . . . . . . . . . Slashing 5915 | . . . . . . . . . . 74 . 552 1238 . 589 580 . 711 . 450 1721 Piercing . | . . . . . . . . . . . . . . . . . . . . . . Highest Corruption 68 | . . . . . . . 18 . 8 4 . 8 5 . . 3 3 8 . 7 68 Average Corruption 6 | . . . . . . . 1 . 3 4 . 7 2 . . 2 3 7 . 1 27 Corruption Purged 13 | . . . . . . . . . . . . . 7 . . . . . . . 6 Corruption Blocked 6 | . . . . . . . . . . 6 . . . . . . . . . . . Effects 84 | . . . . . . . 4 . 3 . . 7 5 . . 30 4 9 . . 22 Message Errors 23 | . . . . . . . 2 . . . . 4 2 . . 7 . 5 . . 3 Matter Fused 20 | . . . . . . . . . 1 . . 1 . . . 12 . 2 . . 4 Heat Flow Errors 11 | . . . . . . . . . . . . 2 1 . . 2 1 1 . . 4 Energy Discharges 7 | . . . . . . . 1 . 1 . . . . . . 3 . . . . 2 Parts Rejected 1 | . . . . . . . . . . . . . . . . . . . . . 1 Data Loss (minor) 13 | . . . . . . . . . 1 . . . 2 . . 4 1 1 . . 4 Data Loss (major) 3 | . . . . . . . . . . . . . . . . 2 . . . . 1 Misfires 1 | . . . . . . . . . . . . . . . . . 1 . . . . Alerts 2 | . . . . . . . 1 . . . . . . . . . 1 . . . . Misdirections 3 | . . . . . . . . . . . . . . . . . . . . . 3 Overload Shots . | . . . . . . . . . . . . . . . . . . . . . . Overflow Damage 1044 | . . . 332 . . . 34 . 9 100 . 61 160 . . 185 . 1 . 15 147 Projectiles 458 | . . . 332 . . . 20 . 9 57 . 18 . . . 21 . 1 . . . Explosions 221 | . . . . . . . 14 . . 43 . . . . . 164 . . . . . Melee 365 | . . . . . . . . . . . . 43 160 . . . . . . 15 147 Knockbacks 48 | . . . 8 . . . . . 9 11 . 4 1 . . 12 . 3 . . . Impact . | . . . . . . . . . . . . . . . . . . . . . . Kinetic 44 | . . . 7 . . . . . 9 9 . 4 1 . . 12 . 2 . . . Secondary 4 | . . . 1 . . . . . . 2 . . . . . . . 1 . . . Self-Inflicted Damage 138 | . . 18 . . . . 93 . . . . . . . . 27 . . . . . Shots 5 | . . 1 . . . . 3 . . . . . . . . 1 . . . . . Rammed 1 | . . . 1 . . . . . . . . . . . . . . . . . . Targets Rammed 3 | . . . 1 . . . . . . . . . . . . . . . . 2 . Kicked 2 | . . . . . . . . . . . . . . . . . . . . 2 . Crushed . | . . . . . . . . . . . . . . . . . . . . . . Highest Temperature 468 | . . 62 33 . . . 123 . 43 24 . 194 468 . 45 414 235 227 . . 220 Average Temperature 84 | . . 20 12 . . . 27 . 13 5 . 67 134 . 21 109 66 126 . . 96 Received Heat Transfer 1521 | . . 218 357 . . . 117 . 171 138 . 54 . . 114 235 . 36 . 81 . Effects 12 | . . . . . . . . . . . . . 3 . . 9 . . . . . Shutdowns 3 | . . . . . . . . . . . . . 1 . . 2 . . . . . Energy Bleed 1 | . . . . . . . . . . . . . 1 . . . . . . . . Interference 7 | . . . . . . . . . . . . . 1 . . 6 . . . . . Short Circuit 1 | . . . . . . . . . . . . . . . . 1 . . . . . Siege Activations . | . . . . . . . . . . . . . . . . . . . . . . Robots Corrupted 1 | . . . . . . . 1 . . . . . . . . . . . . . . Combat Hostiles . | . . . . . . . . . . . . . . . . . . . . . . Parts Fried 25 | . . . . . . . 22 . 3 . . . . . . . . . . . . Impact Corruptions . | . . . . . . . . . . . . . . . . . . . . . . Robots Melted . | . . . . . . . . . . . . . . . . . . . . . . Combat Hostiles . | . . . . . . . . . . . . . . . . . . . . . . Parts Melted 7 | . . . . . . . . . . 1 . . . . 2 . . 2 . . 2 Heat Transferred 500 | . . 100 . . . . 100 . . 200 . . . . . 100 . . . . . Parts Sabotaged . | . . . . . . . . . . . . . . . . . . . . . . Parts Stolen . | . . . . . . . . . . . . . . . . . . . . . . Parts Stripped . | . . . . . . . . . . . . . . . . . . . . . . Power Chain Reactions 6 | . . 1 . . . . 3 . . . . . . . . 2 . . . . . Missiles Intercepted . | . . . . . . . . . . . . . . . . . . . . . . Alert | -11 -10 -10 -9 -9 -9 -8 -8 -7 -7 -6 -5 -5 -4 -4 -4 -4 -4 -3 -2 -2 -1 ------- Run | Scr Mat Min Mat Min Exi Min Mat Fac DSF Fac Fac DSF Fac Was Fac Ext Cet Res Res DSF Acc Peak Influence 935 | . 28 60 386 94 . . 266 67 342 935 444 369 275 55 682 673 889 575 222 186 138 Initial 506 | . . 10 23 94 . . . 67 46 179 431 310 193 55 38 321 376 506 207 166 96 Average 201 | . 10 45 159 94 . . 88 67 169 177 436 323 169 55 397 364 712 476 213 175 56 Maximum Alert Level 3 | . . . 1 . . . 1 . 1 3 2 1 1 . 2 2 3 2 1 . . Low Security (%) 63 | 100 100 100 59 100 . 100 92 100 65 80 . . 73 100 33 8 . . . 100 100 Level 1 21 | . . . 40 . . . 7 . 34 10 . 100 26 . 5 49 7 19 100 . . Level 2 12 | . . . . . . . . . . 4 100 . . . 61 41 24 80 . . . Level 3 2 | . . . . . . . . . . 5 . . . . . . 68 . . . . Level 4 . | . . . . . . . . . . . . . . . . . . . . . . Level 5 . | . . . . . . . . . . . . . . . . . . . . . . High Security . | . . . . . . . . . . . . . . . . . . . . . . Max Security . | . . . . . . . . . . . . . . . . . . . . . . Sterilizations 1 | . . . . . . . . . 1 . . . . . . . . . . . . Squads Dispatched 43 | . . 1 2 . . . 1 1 2 13 . 2 4 . 6 4 . 2 . . 5 Investigation 6 | . . . . . . . . 1 . 2 . . 1 . 1 1 . . . . . Extermination 13 | . . . . . . . . . . 6 . . 2 . 1 . . 1 . . 3 Reinforcement 20 | . . . 2 . . . 1 . 2 5 . 2 1 . 2 2 . 1 . . 2 Assault 3 | . . 1 . . . . . . . . . . . . 1 1 . . . . . Garrison 1 | . . . . . . . . . . . . . . . 1 . . . . . . Intercept . | . . . . . . . . . . . . . . . . . . . . . . Searches Triggered . | . . . . . . . . . . . . . . . . . . . . . . Construction Impeded 5 | . . . . . . . . . . 2 . . . . 1 1 . 1 . . . Haulers Reinforced 2 | . . . . . . . . . . 1 . . 1 . . . . . . . . Active Scanning Responses . | . . . . . . . . . . . . . . . . . . . . . . Cargo Convoy Interrupts 1 | . . . . . . . . . . 1 . . . . . . . . . . . Stealth | -11 -10 -10 -9 -9 -9 -8 -8 -7 -7 -6 -5 -5 -4 -4 -4 -4 -4 -3 -2 -2 -1 --------- Run | Scr Mat Min Mat Min Exi Min Mat Fac DSF Fac Fac DSF Fac Was Fac Ext Cet Res Res DSF Acc Distress Signals 15 | . . . 4 . . . 1 . . . . . 1 . 2 3 2 . . . 2 Communications Jammed . | . . . . . . . . . . . . . . . . . . . . . . Distress Signals . | . . . . . . . . . . . . . . . . . . . . . . Times Spotted 260 | . 2 16 39 . . . 31 . 14 28 . 14 11 . 13 49 12 7 . 7 17 Peak Tracking Total 10 | . 1 10 4 . . . 5 . 4 4 . 5 3 . 4 8 5 4 . 5 7 Tactical Retreats 26 | . . 2 . . . . 4 . 2 2 . 2 1 . . 9 1 1 . 1 1 Traps | -11 -10 -10 -9 -9 -9 -8 -8 -7 -7 -6 -5 -5 -4 -4 -4 -4 -4 -3 -2 -2 -1 ------- Run | Scr Mat Min Mat Min Exi Min Mat Fac DSF Fac Fac DSF Fac Was Fac Ext Cet Res Res DSF Acc Traps Triggered 14 | . 1 . . . . . 2 . . 4 . . 2 . . 3 . . . 1 1 Indirectly . | . . . . . . . . . . . . . . . . . . . . . . Trap Hack Attempts 23 | . . . . . . . 19 . . . . 4 . . . . . . . . . Triggered . | . . . . . . . . . . . . . . . . . . . . . . Disarmed 1 | . . . . . . . . . . . . 1 . . . . . . . . . Reprogrammed 1 | . . . . . . . 1 . . . . . . . . . . . . . . Reused . | . . . . . . . . . . . . . . . . . . . . . . Traps Extracted . | . . . . . . . . . . . . . . . . . . . . . . Installed . | . . . . . . . . . . . . . . . . . . . . . . Triggered 1 | . . . . . . . . . . 1 . . . . . . . . . . . Machines | -11 -10 -10 -9 -9 -9 -8 -8 -7 -7 -6 -5 -5 -4 -4 -4 -4 -4 -3 -2 -2 -1 ---------- Run | Scr Mat Min Mat Min Exi Min Mat Fac DSF Fac Fac DSF Fac Was Fac Ext Cet Res Res DSF Acc Machines Disabled 24 | . . . 4 . . . 2 . . 5 . . . . 5 6 1 1 . . . Max in Single Turn 2 | . . . 2 . . . 2 . . 2 . . . . 1 1 . 1 . . . Garrison Access 2 | . . . . . . . . . . . . . 1 . 1 . . . . . . Machines Sabotaged . | . . . . . . . . . . . . . . . . . . . . . . Garrisons Compromised 2 | . . . . . . . . . . 1 . . . . 1 . . . . . . Overloaded Fab Kills . | . . . . . . . . . . . . . . . . . . . . . . Hacking | -11 -10 -10 -9 -9 -9 -8 -8 -7 -7 -6 -5 -5 -4 -4 -4 -4 -4 -3 -2 -2 -1 --------- Run | Scr Mat Min Mat Min Exi Min Mat Fac DSF Fac Fac DSF Fac Was Fac Ext Cet Res Res DSF Acc Machines Accessed 76 | . 2 1 8 . 2 . 12 3 . 13 1 . 8 . 4 12 3 5 2 . . Terminals 50 | . 2 . 6 . . . 10 1 . 8 1 . 2 . 2 10 3 4 1 . . Fabricators 3 | . . . . . . . . . . 1 . . 2 . . . . . . . . Repair Stations 5 | . . . . . . . 1 . . 1 . . 2 . . 1 . . . . . Recycling Units 7 | . . . 2 . . . . . . 2 . . . . 1 1 . 1 . . . Scanalyzers 6 | . . . . . . . 1 1 . 1 . . 1 . 1 . . . 1 . . Garrison Access 2 | . . . . . . . . 1 . . . . 1 . . . . . . . . Total Hacks 250 | . 7 1 20 . 5 . 32 5 . 62 1 . 29 . 18 45 6 15 4 . . Successful 144 | . 3 1 8 . 5 . 16 1 . 40 1 . 20 . 11 22 6 7 3 . . Failed 104 | . 3 . 12 . . . 16 4 . 21 . . 9 . 7 23 . 8 1 . . Catastrophic 13 | . . . 2 . . . 4 1 . 2 . . . . 1 3 . . . . . Database Lockouts 2 | . 1 . . . . . . . . 1 . . . . . . . . . . . Manual 72 | . 6 . 5 . 1 . 11 . . 19 . . 9 . 5 8 3 5 . . . Terminals 154 | . 7 . 16 . . . 26 1 . 25 1 . 12 . 9 38 6 12 1 . . Fabricators 37 | . . . . . . . . . . 29 . . 8 . . . . . . . . Repair Stations 15 | . . . . . . . 2 . . 2 . . 6 . . 5 . . . . . Recycling Units 13 | . . . 4 . . . . . . 3 . . . . 1 2 . 3 . . . Scanalyzers 22 | . . . . . . . 4 2 . 3 . . 2 . 8 . . . 3 . . Garrison Access 3 | . . . . . . . . 2 . . . . 1 . . . . . . . . Terminal Hacks 71 | . 2 1 5 . 5 . 10 1 . 8 1 . 7 . 4 16 6 4 1 . . Record 12 | . . . . . 4 . . . . . . . 1 . 2 . 5 . . . . Part Schematic 6 | . 1 . . . . . 1 . . 1 . . 3 . . . . . . . . Robot Schematic 5 | . . . . . . . . . . 3 . . . . . 2 . . . . . Prototype ID Bank 2 | . . . . . . . 1 . . . . . 1 . . . . . . . . Open Door 5 | . . 1 . . . . . . . . . . . . . 3 1 . . . . Open DSF 3 | . . . . . . . . 1 . . 1 . . . . . . . 1 . . Level Access Points 2 | . . . . . . . . . . . . . . . . 1 . 1 . . . Branch Access Points 2 | . 1 . . . . . . . . . . . . . . 1 . . . . . Emergency Access Points 2 | . . . 1 . . . . . . . . . 1 . . . . . . . . Machine Index 2 | . . . . . . . . . . . . . 1 . . . . 1 . . . Terminal Index 3 | . . . . . . . . . . 1 . . . . 1 . . 1 . . . Fabricator Index 1 | . . . . . . . . . . 1 . . . . . . . . . . . Garrison Index 2 | . . . . . . . 1 . . . . . . . . 1 . . . . . Alert Level 4 | . . . . . . . 1 . . . . . . . 1 2 . . . . . Unreport Threat 11 | . . . 2 . . . 3 . . 2 . . . . . 3 . 1 . . . Locate Traps 1 | . . . . . . . 1 . . . . . . . . . . . . . . Recall Reinforcements 1 | . . . . . . . . . . . . . . . . 1 . . . . . Hauler Manifests 3 | . . . 1 . . . 1 . . . . . . . . 1 . . . . . Registered Components 1 | . . . . . . . . . . . . . . . . 1 . . . . . Zone Layout 2 | . . . 1 . . . 1 . . . . . . . . . . . . . . EX-Prototype ID Bank 1 | . . . . . 1 . . . . . . . . . . . . . . . . Fabricator Hacks 31 | . . . . . . . . . . 26 . . 5 . . . . . . . . Network Status 1 | . . . . . . . . . . . . . 1 . . . . . . . . Load Schematic 15 | . . . . . . . . . . 13 . . 2 . . . . . . . . Build 15 | . . . . . . . . . . 13 . . 2 . . . . . . . . Repair Station Hacks 11 | . . . . . . . 2 . . . . . 5 . . 4 . . . . . Scan Component 5 | . . . . . . . 1 . . . . . 2 . . 2 . . . . . Repair 5 | . . . . . . . 1 . . . . . 2 . . 2 . . . . . Refit 1 | . . . . . . . . . . . . . 1 . . . . . . . . Recycling Unit Hacks 7 | . . . 3 . . . . . . 1 . . . . . 2 . 1 . . . Process 1 | . . . 1 . . . . . . . . . . . . . . . . . . Report Inventory 4 | . . . 1 . . . . . . 1 . . . . . 1 . 1 . . . Retrieve Matter 1 | . . . 1 . . . . . . . . . . . . . . . . . . Retrieve Components 1 | . . . . . . . . . . . . . . . . 1 . . . . . Scanalyzer 15 | . . . . . . . 4 . . 1 . . 2 . 6 . . . 2 . . Insert Component 7 | . . . . . . . 2 . . 1 . . 1 . 2 . . . 1 . . Analyze 8 | . . . . . . . 2 . . . . . 1 . 4 . . . 1 . . Garrison Access Hacks 1 | . . . . . . . . . . . . . 1 . . . . . . . . Seal Access 1 | . . . . . . . . . . . . . 1 . . . . . . . . Unauthorized Hacks 8 | . 1 . . . . . . . . 4 . . . . 1 . . 2 . . . Terminals 5 | . 1 . . . . . . . . 3 . . . . . . . 1 . . . Assimilate 2 | . 1 . . . . . . . . 1 . . . . . . . . . . . Botnet 3 | . . . . . . . . . . 2 . . . . . . . 1 . . . Fabricators . | . . . . . . . . . . . . . . . . . . . . . . Repair Stations . | . . . . . . . . . . . . . . . . . . . . . . Recycling Units 3 | . . . . . . . . . . 1 . . . . 1 . . 1 . . . Mask 3 | . . . . . . . . . . 1 . . . . 1 . . 1 . . . Scanalyzers . | . . . . . . . . . . . . . . . . . . . . . . Garrison Access . | . . . . . . . . . . . . . . . . . . . . . . Data Cores Recovered 3 | . . . 1 . . . 1 . . 1 . . . . . . . . . . . Used 1 | . . . . . . . . . . 1 . . . . . . . . . . . Hacking Detections 57 | . 1 . 8 . . . 11 3 . 11 . . 5 . 3 9 1 4 1 . . Full Trace Events 7 | . . . . . . . 2 1 . 2 . . 1 . . 1 . . . . . Feedback Events 2 | . . . . . . . . . . 1 . . . . . 1 . . . . . Hackware Fried 2 | . . . . . . . . . . 1 . . . . . 1 . . . . . Feedback Blocked . | . . . . . . . . . . . . . . . . . . . . . . Robot Schematics Acquired 5 | . . . . . . . . . . 3 . . . . . 2 . . . . . Robots Built 23 | . . . . . . . . . . 23 . . . . . . . . . . . Authchips 12 | . . . . . . . . . . 12 . . . . . . . . . . . Time 826 | . . . . . . . . . . 826 . . . . . . . . . . . Total Robot Build Rating 87 | . . . . . . . . . . 87 . . . . . . . . . . . Part Schematics Acquired 12 | . 1 . . . . . 3 . . 1 . . 4 . 2 . . . 1 . . Parts Built 2 | . . . . . . . . . . . . . 2 . . . . . . . . Authchips 1 | . . . . . . . . . . . . . 1 . . . . . . . . Time 88 | . . . . . . . . . . . . . 88 . . . . . . . . Total Part Build Rating 12 | . . . . . . . . . . . . . 12 . . . . . . . . Parts Repaired 5 | . . . . . . . 1 . . . . . 2 . . 2 . . . . . Time 182 | . . . . . . . 51 . . . . . 75 . . 56 . . . . . Parts Recycled . | . . . . . . . . . . . . . . . . . . . . . . Recycled Matter 110 | . . . 110 . . . . . . . . . . . . . . . . . . Retrieved Matter 110 | . . . 110 . . . . . . . . . . . . . . . . . . Retrieved Components 10 | . . . . . . . . . . . . . . . . 10 . . . . . Parts Scanalyzed 7 | . . . . . . . 2 . . 1 . . 1 . 2 . . . 1 . . Part Schematics Acquired 6 | . . . . . . . 2 . . . . . 1 . 2 . . . 1 . . Parts Damaged 3 | . . . . . . . . . . . . . . . 2 . . . 1 . . Bothacking | -11 -10 -10 -9 -9 -9 -8 -8 -7 -7 -6 -5 -5 -4 -4 -4 -4 -4 -3 -2 -2 -1 ------------ Run | Scr Mat Min Mat Min Exi Min Mat Fac DSF Fac Fac DSF Fac Was Fac Ext Cet Res Res DSF Acc Used RIF Installer . | . . . . . . . . . . . . . . . . . . . . . . Robots Hacked 20 | . . . . . . . . . . . . . 9 . . 10 . . . . 1 Non-combat 20 | . . . . . . . . . . . . . 9 . . 10 . . . . 1 Combat . | . . . . . . . . . . . . . . . . . . . . . . Robot Hacks Applied 20 | . . . . . . . . . . . . . 9 . . 10 . . . . 1 no_distress 20 | . . . . . . . . . . . . . 9 . . 10 . . . . 1 Relay Couplers Released 6 | . . . . . . . . . . . . . . . 2 . . . . . 4 Machine Destruction 2 | . . . . . . . . . . . . . . . 2 . . . . . . Programmers 4 | . . . . . . . . . . . . . . . . . . . . . 4 Fabnet Peak Effective % . | . . . . . . . . . . . . . . . . . . . . . . Robots Rewired 18 | . . . . . . . . . . . . . . . . 18 . . . . . Allies Hacked 1 | . . . . . . . . . . 1 . . . . . . . . . . . Hacks Repelled . | . . . . . . . . . . . . . . . . . . . . . . Allies | -11 -10 -10 -9 -9 -9 -8 -8 -7 -7 -6 -5 -5 -4 -4 -4 -4 -4 -3 -2 -2 -1 -------- Run | Scr Mat Min Mat Min Exi Min Mat Fac DSF Fac Fac DSF Fac Was Fac Ext Cet Res Res DSF Acc Total Allies 77 | . 1 1 . . . . . . . 28 . . . 20 . 22 5 . . . . Largest Group 23 | . 1 2 . . . . . . . 23 8 8 . 20 20 11 9 1 . . . Highest-Rated Group 779 | . 10 41 . . . . . . . 779 240 240 . 726 726 557 661 159 . . . Highest-Rated Ally 159 | . 10 31 . . . . . . . 37 37 37 . 50 50 159 159 159 . . . Total Orders 48 | . . . . . . . . . . 39 . 2 . . . 7 . . . . . STAY 35 | . . . . . . . . . . 32 . . . . . 3 . . . . . FOLLOW 5 | . . . . . . . . . . 4 . . . . . 1 . . . . . AID 2 | . . . . . . . . . . 1 . 1 . . . . . . . . . DROP 2 | . . . . . . . . . . . . . . . . 2 . . . . . PICKUP 4 | . . . . . . . . . . 2 . 1 . . . 1 . . . . . Ally Attacks 397 | . . 1 . . . . . . . 107 2 19 . . 76 105 87 . . . . Total Damage 13059 | . . . . . . . . . . 3255 28 342 . . 3582 2990 2862 . . . . Kills 91 | . . . . . . . . . . 30 1 1 . . 16 24 19 . . . . Allies Corrupted . | . . . . . . . . . . . . . . . . . . . . . . Allies Melted . | . . . . . . . . . . . . . . . . . . . . . . Intel | -11 -10 -10 -9 -9 -9 -8 -8 -7 -7 -6 -5 -5 -4 -4 -4 -4 -4 -3 -2 -2 -1 ------- Run | Scr Mat Min Mat Min Exi Min Mat Fac DSF Fac Fac DSF Fac Was Fac Ext Cet Res Res DSF Acc Robot Analysis Total . | . . . . . . . . . . . . . . . . . . . . . . Derelict Logs Recovered . | . . . . . . . . . . . . . . . . . . . . . . Drone Launches . | . . . . . . . . . . . . . . . . . . . . . . Drone Recoveries . | . . . . . . . . . . . . . . . . . . . . . . Exploration | -11 -10 -10 -9 -9 -9 -8 -8 -7 -7 -6 -5 -5 -4 -4 -4 -4 -4 -3 -2 -2 -1 ------------- Run | Scr Mat Min Mat Min Exi Min Mat Fac DSF Fac Fac DSF Fac Was Fac Ext Cet Res Res DSF Acc Turns Passed 16757 | 44 85 364 1568 78 432 258 2581 241 387 4066 21 298 1093 234 336 2634 342 498 174 129 894 Spaces Moved 9057 | 46 91 174 599 52 265 112 871 97 106 2188 15 150 990 341 408 1384 239 267 143 68 451 Core 31 | 4 . . . . . . . . . . . . . . . . . . . . 27 Treads 2486 | . . . 512 52 265 112 871 97 106 471 . . . . . . . . . . . Legs 1727 | . . 81 . . . . . . . . . . . . . 566 239 267 143 68 363 Wheels 2087 | 42 91 93 87 . . . . . . 1717 15 42 . . . . . . . . . Hover 2726 | . . . . . . . . . . . . 108 990 341 408 818 . . . . 61 Flight . | . . . . . . . . . . . . . . . . . . . . . . Fastest Speed 44 | 50 80 80 110 152 152 232 232 250 170 130 130 58 52 56 56 56 120 113 113 112 44 Average Speed 138 | 77 80 170 202 152 161 232 243 250 222 150 130 95 57 56 56 129 120 118 113 112 107 Slowest Speed 410 | 80 80 260 232 152 232 232 410 250 250 330 130 130 131 56 56 330 120 120 113 113 180 Overloaded Moves . | . . . . . . . . . . . . . . . . . . . . . . Propulsion Burnouts . | . . . . . . . . . . . . . . . . . . . . . . Robots Hopped . | . . . . . . . . . . . . . . . . . . . . . . Cave-ins Triggered 8 | . . . . . . . . . . . . . 1 . . . . . . . 7 Exploration Rate (%) 40 | 3 15 37 55 16 63 27 77 4 67 42 1 88 20 97 12 89 83 6 4 79 10 Regions Visited 21 Branch Regions 6 Pre-discovered Areas 2 | . . . . 1 1 . . . . . . . . . . . . . . . . Known Exits Taken 7 | . 1 . . . . . . 1 . . 1 . . . . 1 1 1 1 . . Unknown Exits Taken 9 | 1 . 1 1 1 1 1 1 . . 1 . . . . 1 . . . . . . Scrap Searched 1 | . . 1 . . . . . . . . . . . . . . . . . . . Spaces Dug 86 | . . . 3 . . . . . . 3 . . 28 . 9 1 . 18 . . 24 Terrain Destroyed 421 | . . . 38 . . . 52 . 17 77 . 8 28 . 9 150 . 18 . . 24 Melee 80 | . . . . . . . . . . . . . 28 . 9 1 . 18 . . 24 Projectile 95 | . . . 38 . . . . . 17 17 . 8 . . . 15 . . . . . AOE 245 | . . . . . . . 52 . . 60 . . . . . 133 . . . . . Terrain Rammed . | . . . . . . . . . . . . . . . . . . . . . . Walls Destroyed . | . . . . . . . . . . . . . . . . . . . . . . Machines Disabled . | . . . . . . . . . . . . . . . . . . . . . . Actions | -11 -10 -10 -9 -9 -9 -8 -8 -7 -7 -6 -5 -5 -4 -4 -4 -4 -4 -3 -2 -2 -1 --------- Run | Scr Mat Min Mat Min Exi Min Mat Fac DSF Fac Fac DSF Fac Was Fac Ext Cet Res Res DSF Acc Total 12102 | 51 102 212 809 51 271 111 1228 97 189 2853 16 247 1398 382 472 1993 286 356 155 96 727 Wait 1697 | . 5 3 93 . . . 214 . 4 532 2 14 266 37 29 281 31 21 5 6 154 Move 9038 | 45 90 173 598 51 264 111 870 96 105 2187 14 149 990 340 407 1383 238 266 142 68 451 Hop . | . . . . . . . . . . . . . . . . . . . . . . Pick Up 102 | . 6 4 7 . 1 . 22 . 14 15 . 6 9 2 1 8 1 2 . . 4 Fast Attach 92 | 6 1 4 4 . . . 9 . 3 9 . 5 8 1 . 18 3 2 4 3 12 Attach 69 | . . 1 3 . . . 2 1 4 15 . 7 13 . 1 8 . 3 . 1 10 Detach 14 | . . . . . . . 1 . . 2 . . 6 . 1 . . . . . 4 Swap 84 | . . 5 2 . 3 . 13 . . 4 . 5 14 1 2 23 6 3 . 2 1 Drop 98 | . . 3 7 . 3 . 13 . 12 7 . 14 9 . 2 13 4 2 4 1 4 Fire 472 | . . 19 94 . . . 65 . 47 49 . 26 16 1 . 135 3 13 . . 4 Melee 293 | . . . . . . . . . . 27 . 17 67 . 29 12 . 44 . 14 83 Ram . | . . . . . . . . . . . . . . . . . . . . . . Kick 1 | . . . . . . . . . . . . . . . . . . . . 1 . Crush 1 | . . . 1 . . . . . . . . . . . . . . . . . . Escape Stasis 35 | . . . . . . . . . . 6 . . . . . 29 . . . . . Rewire 83 | . . . . . . . . . . . . . . . . 83 . . . . . Trap 23 | . . . . . . . 19 . . . . 4 . . . . . . . . . Miscellaneous . | . . . . . . . . . . . . . . . . . . . . . . Route ------- -11/Scrapyard -10/Materials (discovered 2 exits: *Min x2) -10/Mines -9/Materials (discovered 3 exits: *Mat x2 / [*Min]) -9/Mines (discovered 3 exits: *Mat / *Exi / [*Zio]) -9/Exiles -8/Mines -8/Materials (discovered 4 exits: *Fac x2 / [*Sto x2]) -7/Factory -7/DSF -6/Factory -5/Factory -5/DSF -4/Factory -4/Waste -4/Factory -4/Extension (discovered 3 exits: *Res x2 / *Cet) -4/Cetus (discovered 2 exits: *Res / [*Arc]) -3/Research (discovered 3 exits: *Res x3) -2/Research -2/DSF -1/Access History --------- Turn | Location | Event 9 | -11/Scrapyard | Discovered new exit (range 16) 45 | -11/Scrapyard | Entered Materials 51 | -10/Materials | Central database locked down 102 | -10/Materials | Identified exit to Mines 130 | -10/Materials | Entered Mines 130 | -10/Mines | Accompanied by 1 ally 131 | -10/Mines | Met a Derelict testing a Signal Generator 153 | -10/Mines | Assembled infested the area 158 | -10/Mines | Assisted by a Guerilla fighting off Assembled 278 | -10/Mines | Destroyed 7 combat bots 313 | -10/Mines | Build established: Mutant 436 | -10/Mines | Discovered new exit (range 9) 463 | -10/Mines | Met a Derelict who couldn't figure out how to use a Trap Extractor 494 | -10/Mines | Entered Materials 494 | -9/Materials | Evolved 2 slots: Utility x2 826 | -9/Materials | Discovered new exit (range 15) 990 | -9/Materials | Discovered new exit (range 11) 1373 | -9/Materials | Discovered new exit (range 14) 2062 | -9/Materials | Entered Mines 2063 | -9/Mines | A Derelict revealed a hidden shortcut to a safe place 2119 | -9/Mines | Discovered new exit (range 8) 2123 | -9/Mines | Learned location of Storage (-8) 2134 | -9/Mines | Deemed a non-threat by the Exiles lab entrance 2134 | -9/Mines | Discovered new exit (range 5) 2140 | -9/Mines | Entered Exiles 2182 | -9/Exiles | Met 8R-AWN 2204 | -9/Exiles | Met EX-HEX 2247 | -9/Exiles | Met EX-BIN 2265 | -9/Exiles | Aligned with FarCom system 2267 | -9/Exiles | Given EX-Vault access code 2302 | -9/Exiles | Opened EX-Vault 2325 | -9/Exiles | Found AWS/Thermal 2355 | -9/Exiles | Warned to stay clear of 0b10 Research branches 2401 | -9/Exiles | Met EX-DEC 2434 | -9/Exiles | Learned location of Zion (-7) 2549 | -9/Exiles | Discovered new exit (range 12) 2572 | -9/Exiles | Left Exiles lab with AWS/Thermal 2572 | -9/Exiles | Entered Mines 2656 | -8/Mines | Discovered new exit (range 15) 2830 | -8/Mines | Entered Materials 2830 | -8/Materials | Evolved 2 slots: Utility x2 2830 | -8/Materials | Discovered new exit (range 7) 3521 | -8/Materials | Discovered new exit (range 7) 4054 | -8/Materials | Repaired Hvy. Ion Engine 4659 | -8/Materials | Discovered new exit (range 11) 4885 | -8/Materials | Discovered new exit (range 9) 5389 | -8/Materials | System corruption reached 10% 5411 | -8/Materials | Entered Factory 5411 | -7/Factory | Evolved 2 slots: Propulsion x2 5650 | -7/Factory | Identified exit to DSF 5652 | -7/Factory | Entered DSF 5699 | -7/DSF | Build established: Scavenger-Mutant 5704 | -7/DSF | Additional patrols routed to DSF 5845 | -7/DSF | Discovered new exit (range 15) 5957 | -7/DSF | Sterilization system engaged 5977 | -7/DSF | Ambient heat levels rising (+10) 5992 | -7/DSF | Ambient heat levels rising (+10) 6007 | -7/DSF | Ambient heat levels rising (+10) 6022 | -7/DSF | Ambient heat levels rising (+10) 6037 | -7/DSF | Ambient heat levels rising (+10) 6039 | -7/DSF | Entered Factory 6039 | -6/Factory | Evolved 2 slots: Utility x2 6145 | -6/Factory | Hacking Suite fried by hacking feedback 6776 | -6/Factory | Cargo convoy interrupted 8306 | -6/Factory | Fabricated P-60 Hacker (x2) 8405 | -6/Factory | Fabricated P-60 Hacker? 8493 | -6/Factory | Fabricated P-60 Hacker? 8582 | -6/Factory | Fabricated M-13 Machinist? 8678 | -6/Factory | Fabricated P-60 Hacker? 8785 | -6/Factory | Fabricated P-60 Hacker? 8794 | -6/Factory | Build established: Commander-Mutant 8880 | -6/Factory | Fabricated P-60 Hacker? 8991 | -6/Factory | Fabricated P-60 Hacker (x2) 9133 | -6/Factory | Fabricated A-15 Conveyor (x1) 9225 | -6/Factory | Fabricated P-60 Hacker? 9308 | -6/Factory | Central database locked down 9488 | -6/Factory | Fabricated P-60 Hacker? 9588 | -6/Factory | Fabricated P-60 Hacker? 9640 | -6/Factory | Fabricated M-13 Machinist? 9871 | -6/Factory | Hacker 5m assimilated hostile G-50 Soldier 9995 | -6/Factory | Discovered new exit (range 5) 10105 | -6/Factory | Entered another Factory area 10105 | -5/Factory | Accompanied by 8 allies 10105 | -5/Factory | Evolved 2 slots: Power x1, Utility x1 10121 | -5/Factory | Identified exit to DSF 10126 | -5/Factory | Entered DSF 10126 | -5/DSF | Accompanied by 8 allies 10146 | -5/DSF | Additional patrols routed to DSF 10236 | -5/DSF | P-70 Sage assimilated allied Machinist 5b 10307 | -5/DSF | Lost 5 parts (1p1n2u1w) 10407 | -5/DSF | Discovered new exit (range 14) 10424 | -5/DSF | Entered Factory 10424 | -4/Factory | Evolved 2 slots: Propulsion x1, Utility x1 10530 | -4/Factory | Crushed by falling debris 10561 | -4/Factory | Lost 3 parts (1n2u) 10643 | -4/Factory | Repaired Lyr. Medium Armor Plating 10710 | -4/Factory | Build established: Wizard-Mutant 10985 | -4/Factory | Fabricated Imp. Arc Projector (x1) 11127 | -4/Factory | Repaired Imp. System Restoration Module 11224 | -4/Factory | Found Fusion Bomb Launcher 11282 | -4/Factory | Fabricated Adv. Hacking Suite (x1) 11384 | -4/Factory | Lost 4 parts (1p2n1u) 11510 | -4/Factory | Found Prototype Slashing Weapon 11511 | -4/Factory | Identified Molecular Scythe 11517 | -4/Factory | Sucked down chute 11517 | -4/Factory | Entered Waste 11518 | -4/Waste | Joined by Warlord forces that had cleared the area 11600 | -4/Waste | Build established: Hacker-Mutant 11607 | -4/Waste | Discovered new exit (range 12) 11751 | -4/Waste | Entered Factory 11751 | -4/Factory | Accompanied by 20 allies 11921 | -4/Factory | Garrison activated, responded to threat 12058 | -4/Factory | Discovered new exit (range 5) 12087 | -4/Factory | Entered Extension 12087 | -4/Extension | Accompanied by 4 allies 12262 | -4/Extension | Identified exit to Research 12337 | -4/Extension | System Shield fried by hacking feedback 12451 | -4/Extension | Identified exit to Cetus 12470 | -4/Extension | Rescued a captive Derelict 12666 | -4/Extension | Rescued a captive Derelict 12666 | -4/Extension | Rescued a captive Derelict 12784 | -4/Extension | Repaired Lyr. Medium Armor Plating 12816 | -4/Extension | Repaired Hyp. Mass Driver 13106 | -4/Extension | Spotted B-86 Titan 13238 | -4/Extension | Spotted B-86 Titan 13250 | -4/Extension | Destroyed B-86 Titan 13262 | -4/Extension | Disrupted transfer network 13279 | -4/Extension | Lost 4 parts (1p1n2u) 13454 | -4/Extension | Lost 6 parts (2n4u) 14040 | -4/Extension | Core integrity fell below 50% 14269 | -4/Extension | Rescued A7 14587 | -4/Extension | First assault squad dispatched 14721 | -4/Extension | Entered Cetus 14721 | -4/Cetus | Accompanied by 9 allies (A7) 14726 | -4/Cetus | Acquired a Cetus Manufacturing Module code from A7 14736 | -4/Cetus | Spotted Cetus Guard 14739 | -4/Cetus | Spotted Cetus Guard 14739 | -4/Cetus | Spotted Cetus Guard 14743 | -4/Cetus | Spotted Cetus Guard 14745 | -4/Cetus | Allies destroyed Cetus Guard 14750 | -4/Cetus | Allies destroyed Cetus Guard 14750 | -4/Cetus | Allies destroyed Cetus Guard 14754 | -4/Cetus | Allies destroyed Cetus Guard 14835 | -4/Cetus | Started Cetus Manufacturing Module 14845 | -4/Cetus | Escorted A7 to Cetus Mainframe 14860 | -4/Cetus | Manufactured an Enhanced Grunt 14885 | -4/Cetus | Manufactured an Enhanced Grunt 14901 | -4/Cetus | Discovered new exit (range 16) 14910 | -4/Cetus | Manufactured an Enhanced Grunt 14912 | -4/Cetus | Build established: Scavenger-Mutant 14935 | -4/Cetus | Manufactured an Enhanced Grunt 14938 | -4/Cetus | Destroyed Cetus Guard 14942 | -4/Cetus | Spotted Cetus Guard 14946 | -4/Cetus | Spotted Cetus Guard 14946 | -4/Cetus | Spotted Cetus Guard 14954 | -4/Cetus | Allies destroyed Cetus Guard 14960 | -4/Cetus | Manufactured an Enhanced Grunt 14969 | -4/Cetus | Discovered exit to Research (range 15) 14975 | -4/Cetus | Met Revision 17 15063 | -4/Cetus | Entered Research 15063 | -3/Research | Accompanied by 1 ally (A7) 15063 | -3/Research | Evolved 2 slots: Propulsion x1, Weapon x1 15068 | -3/Research | Received a hacking code to weaken MAIN.C 15314 | -3/Research | Identified exit to Research 15531 | -3/Research | Lost 3 parts (2n1w) 15561 | -3/Research | Entered another Research area 15561 | -2/Research | Evolved 2 slots: Power x1, Weapon x1 15734 | -2/Research | Identified exit to DSF 15735 | -2/Research | Entered DSF 15792 | -2/DSF | Additional patrols routed to DSF 15812 | -2/DSF | Discovered new exit (range 16) 15864 | -2/DSF | Entered Access 15864 | -1/Access | Evolved 2 slots: Utility x2 15894 | -1/Access | Lost 4 parts (2n1u1w) 16264 | -1/Access | Lost 3 parts (1p2u) 16423 | -1/Access | Crushed by falling debris 16440 | -1/Access | Crushed by falling debris 16462 | -1/Access | Crushed by falling debris 16462 | -1/Access | System corruption reached 10% 16465 | -1/Access | Crushed by falling debris 16471 | -1/Access | Crushed by falling debris 16482 | -1/Access | Crushed by falling debris 16482 | -1/Access | System corruption reached 30% 16492 | -1/Access | Crushed by falling debris 16523 | -1/Access | Lost 13 parts (2p4n6u1w) 16583 | -1/Access | Lost 4 parts (3n1w) 16609 | -1/Access | Core integrity fell below 50% 16641 | -1/Access | Lost 4 parts (1p2n1u) 16727 | -1/Access | Spotted B-99 Colossus 16743 | -1/Access | Core integrity fell below 20% 16758 | -1/Access | Destroyed by P-80 Master with Gamma Rifle Last Messages --------------- 16736_ Quantum Capacitor tumbles out of recycling unit. 16738_ Com. Linear Accelerator tumbles out of recycling unit. 16738_ Slug penetrates Recycling Unit. 16738_ Penetrated by Slug. 16738_ Slug penetrates Wall. 16738_ Penetrated by Slug. 16738_ Slug penetrates Wall. 16741_ Slug penetrates Recycling Unit. 16741_ Slug penetrates Wall. 16741_ Penetrated by Slug. 16741_ Biometal Leg destroyed. 16741_ Slug penetrates Wall. 16741_ U-05 Engineer lays Concrete. 16744_ System corrupted: Heat flow error (+246). 16745_ Centrium Leg destroyed. 16745_ Penetrated by Slug. 16745_ U-05 Engineer builds a Wall. 16745_ Acquired 13 matter. 16752_ P-80 Master resets P-80 Master, system corruption cleaned. [Achievement: Overachiever] Map ----- +----------------------------------------------------+ | ?????????????????????????????????????????????????? | | ?????????????????????????????????????????????????? | | ?????????????????????????????????????????????????? | | ?????????????????????????????????????????????????? | | ?????????????????????????????????????????????????? | | ?????????????????????????????????????????????????? | | ?????????????????????????????????????????????????? | | ?????????????????????????????????????????????????? | | ?????????????????????????????????????????????????? | | ????????????? ?????????????????????????????????? | | ??????????? ????????????????????????????????? | | ???????? ????????????????????????????????? | | ???????T ????????????????????????????????? | | ???????" ????????????????????????????????? | | ????? "" #????????????????????????????????? | | ????? g#????????????????????????????????? | | ?????? #????????????????????????????????? | | ??????? ##???g???????????????????????????? | | ??????? p #???????????????????????????????? | | ???????? #???????????????????????????????? | | ????????? #??????????#????????????????????? | | ??????????? #????????? #????????????????????? | | ?????????????# k ########## #????????????????????? | | ?????????????# ##+#### #????????? | | ?????????????# ??????????? | | ? ???????????# @ #?????????????????? | | ########### A #?????????????????? | | # ] # u #?????????????????? | | + ! p #?????????????????? | | # " # ##### #?????????????????? | | # """ # p #???? ????????????????? | | # """ + p #????###+###???????????????? | | # " # #??????????????????????????? | | # [ # #####??????????????????????? | | # + +?????????????????????? | | ########### ##+#####??????????????????????? | | ##########" #?????????????????????????????? | | % +?????????????????????????????? | | % #?????????????????????????????? | | ! #?????????????????????????????? | | " "" +?????????????????????????????? | | ]" ######?????????????????????????????? | | ! #??????????????????????????????????? | | ! #??????????????????????????????????? | | #??????????????????????????????????? | | #" ####??????????????????????????????????? | | ### ##### #?????????????????????????????????????? | | ??# #???####?????????????????????????????????????? | | ??# #????????????????????????????????????????????? | | ??# #????????????????????????????????????????????? | +----------------------------------------------------+ Best States ------------- Heat Dissipation 79 Energy Generation 47 Energy Capacity 350 Matter Stores 300 Matter Capacity 300 Sight Range 20 Robot Scan Range 15 Terrain Scan Density 10 EM Shielding 6 Armor Coverage 1050 Resistance: KI 20 Evasion (%) 56 Recoil Reduction 4 Offensive Hacking 34 Defensive Hacking 30 Authchip Count 13 Item Schematics ----------------- Lrg. Storage Unit | -10/Materials | Hacked Hacking Suite | -8/Materials | Hacked Rnf. Deuterium Engine | -8/Materials | Scanalyzed EM Pulse Cannon | -8/Materials | Scanalyzed Gyrokinetic Inverter | -6/Factory | Hacked Imp. Arc Projector | -4/Factory | Hacked Adv. Hacking Suite | -4/Factory | Hacked Adv. System Shield | -4/Factory | Hacked Lyr. Medium Armor Plating | -4/Factory | Scanalyzed Enh. Nova Cannon | -4/Factory | Scanalyzed Molecular Scythe | -4/Factory | Scanalyzed Myomer Leg | -2/Research | Scanalyzed Robot Schematics ------------------ P-60 Hacker | -6/Factory | Hacked M-13 Machinist | -6/Factory | Hacked A-15 Conveyor | -6/Factory | Hacked M-30 Cleanser | -4/Extension | Hacked M-22 Extractor | -4/Extension | Hacked Fabricated ------------ P-60 Hacker | x2 | -6/Factory | Authchip P-60 Hacker | x2 | -6/Factory | Authchip P-60 Hacker | x2 | -6/Factory | Authchip M-13 Machinist | x1 | -6/Factory | Authchip P-60 Hacker | x2 | -6/Factory | Authchip P-60 Hacker | x2 | -6/Factory | Authchip P-60 Hacker | x2 | -6/Factory | Authchip P-60 Hacker | x2 | -6/Factory | Authchip A-15 Conveyor | x1 | -6/Factory | Authchip P-60 Hacker | x2 | -6/Factory | Authchip P-60 Hacker | x2 | -6/Factory | Authchip P-60 Hacker | x2 | -6/Factory | Authchip M-13 Machinist | x1 | -6/Factory Imp. Arc Projector | x1 | -4/Factory | Authchip Adv. Hacking Suite | x1 | -4/Factory Alien Tech Used ----------------- None Achievements -------------- Main Advantage Overachiever Project G-00 Revising The Future Challenges ------------ None Game ------ Seed AdvancedFlakVibroblade Manual? 0 Play Time 03:42:45 Cumulative 160.5 hours Start 2022.09.27 @ 00:27:29 End 2022.09.27 @ 04:17:30 Sessions 1 Manual Loads 0 Difficulty Rogue Special Mode None Game No. 126 Rogue 123 Adventurer 3 Explorer 0 Win Type - Total 1 Types 1/0/0/0/0/0/0/0/0 Lore% 56 Gallery% 59 Achievement% 50 Wizard Run 0 Options --------- ASCII 0 Keyboard 0 Movement Numpad Keybinds 0 Fullscreen 1 Font 18/SmallcapsGlow Map View 76x50 Tactical HUD 1 Map Filters NONE Filters NONE Steam 1 RUN: 96424290-93c3-4046-9fc9-89b10abd400b